fUST/lending_fUST_20240105
["ID","MTS","AMOUNT","RATE_DAILY","PERIOD"]
[310213805,1704402642872,-500.0,0.0003863,7]
[310213808,1704402642882,-531.15,0.0003863,2]
[310213810,1704402642892,-500.0,0.0003863,7]
[310213812,1704402642901,-500.0,0.0003863,7]
[310213815,1704402642911,-500.0,0.0003863,7]
[310213818,1704402642920,-500.0,0.0003863,7]
[310213821,1704402642929,-500.0,0.0003863,7]
[310213824,1704402642938,-500.0,0.0003863,7]
[310213826,1704402642947,-500.0,0.0003863,7]
[310213829,1704402642956,-545.36,0.0003863,7]
[310213832,1704402642966,-500.0,0.0003863,7]
[310213835,1704402642975,-500.0,0.0003863,7]
[310213837,1704402642983,-500.0,0.0003863,7]
[310213839,1704402642992,-214.18076035,0.0003863,7]
[310213841,1704402643001,-827.45,0.0003863,7]
[310213843,1704402643010,-500.0,0.0003863,7]
[310213845,1704402643020,-500.0,0.0003863,7]
[310213846,1704402643029,-500.0,0.0003863,7]
[310213848,1704402643038,-500.0,0.0003863,7]
[310213850,1704402643048,-500.0,0.0003863,7]
[310213852,1704402643057,-604.55351256,0.0003863,7]
[310213854,1704402643066,-500.0,0.0003863,7]
[310213856,1704402643075,-563.33939709,0.0003863,7]
[310213858,1704402643084,-1245.07,0.0003863,7]
[310213860,1704402643093,-500.0,0.0003863,7]
[310213862,1704402643102,-500.0,0.0003863,7]
[310213864,1704402643111,-487.81165154,0.0003863,7]
[310213866,1704402643121,-500.0,0.0003863,7]
[310213868,1704402643130,-500.0,0.0003863,7]
[310213870,1704402643139,-500.0,0.0003863,7]
[310213872,1704402643148,-825.19,0.0003863,7]
[310213874,1704402643157,-500.0,0.0003863,7]
[310213876,1704402643166,-500.0,0.0003863,7]
[310213878,1704402643175,-500.0,0.0003863,7]
[310213880,1704402643184,-500.0,0.0003863,7]
[310213882,1704402643195,-514.16399318,0.0003863,7]
[310213884,1704402643204,-500.0,0.0003863,7]
[310213886,1704402643213,-500.0,0.0003863,7]
[310213888,1704402643221,-500.0,0.0003863,7]
[310213890,1704402643230,-500.0,0.0003863,7]
[310213892,1704402643239,-500.10326256,0.0003863,7]
[310213894,1704402643247,-2473.66,0.0003863,7]
[310213896,1704402643257,-500.0,0.0003863,7]
[310213898,1704402643266,-500.0,0.0003863,7]
[310213900,1704402643276,-399.84214994,0.0003863,7]
[310213902,1704402643285,-500.0,0.0003863,7]
[310213904,1704402643295,-689.61,0.0003863,7]
[310213906,1704402643304,-500.0,0.0003863,7]
[310213908,1704402643313,-500.0,0.0003863,7]
[310213910,1704402643322,-500.0,0.0003863,7]
[310213912,1704402643331,-500.0,0.0003863,7]
[310213914,1704402643340,-500.0,0.0003863,7]
[310213916,1704402643349,-500.0,0.0003863,7]
[310213917,1704402643358,-500.0,0.0003863,7]
[310213919,1704402643367,-505.60017931,0.0003863,7]
[310213921,1704402643377,-500.0,0.0003863,7]
[310213923,1704402643387,-500.0,0.0003863,7]
[310213925,1704402643397,-500.0,0.0003863,7]
[310213927,1704402643410,-1976.56,0.0003863,2]
[310213930,1704402643422,-500.0,0.0003863,7]
[310213931,1704402643432,-500.0,0.0003863,7]
[310213933,1704402643443,-500.0,0.0003863,7]
[310213935,1704402643453,-500.0,0.0003863,7]
[310213937,1704402643463,-500.0,0.0003863,2]
[310213940,1704402643473,-500.0,0.0003863,7]
[310213941,1704402643484,-1936.31,0.0003863,7]
[310213944,1704402643495,-961.52,0.0003863,7]
[310213946,1704402643504,-1091.4,0.0003863,7]
[310213947,1704402643515,-500.0,0.0003863,7]
[310213949,1704402643524,-506.48010432,0.0003863,7]
[310213951,1704402643534,-500.0,0.0003863,7]
[310213953,1704402643543,-500.0,0.0003863,7]
[310213955,1704402643553,-500.0,0.0003863,7]
[310213957,1704402643562,-1512.12,0.0003863,7]
[310213959,1704402643573,-500.0,0.0003863,7]
[310213961,1704402643583,-500.0,0.0003863,7]
[310213963,1704402643592,-500.0,0.0003863,7]
[310213965,1704402643602,-661.26,0.0003863,7]
[310213967,1704402643612,-500.0,0.0003863,7]
[310213969,1704402643621,-705.46,0.0003863,7]
[310213971,1704402643631,-502.72,0.0003863,7]
[310213973,1704402643640,-500.0,0.0003863,7]
[310213975,1704402643650,-500.0,0.0003863,7]
[310213977,1704402643659,-412.57757901,0.0003863,7]
[310213979,1704402643668,-804.09,0.0003863,7]
[310213981,1704402643678,-500.0,0.0003863,7]
[310213983,1704402643689,-500.0,0.0003863,7]
[310213985,1704402643699,-500.0,0.0003863,7]
[310213987,1704402643708,-500.0,0.0003863,7]
[310213989,1704402643716,-500.0,0.0003863,7]
[310213991,1704402643725,-500.0,0.0003863,7]
[310213993,1704402643734,-500.0,0.0003863,7]
[310213995,1704402643743,-500.0,0.0003863,7]
[310213997,1704402643752,-1531.92,0.0003863,7]
[310213999,1704402643761,-176.08753667,0.0003863,7]
[310214001,1704402643770,-500.85849051,0.0003863,7]
[310214003,1704402643779,-500.0,0.0003863,7]
[310214005,1704402643788,-500.0,0.0003863,7]
[310214007,1704402643798,-500.0,0.0003863,7]
[310214009,1704402643808,-500.0,0.0003863,7]
[310214011,1704402643817,-1004.4274455,0.0003863,5]
[310214013,1704402643827,-500.0,0.0003863,7]
[310214015,1704402643836,-500.0,0.0003863,7]
[310214017,1704402643846,-687.47,0.0003863,7]
[310214019,1704402643856,-500.0,0.0003863,7]
[310214021,1704402643865,-200.83008317,0.0003863,7]
[310214023,1704402643874,-500.0,0.0003863,7]
[310214025,1704402643883,-528.7,0.0003863,7]
[310214027,1704402643892,-500.0,0.0003863,7]
[310214029,1704402643902,-500.0,0.0003863,7]
[310214031,1704402643911,-1000.0,0.0003863,2]
[310214033,1704402643920,-500.0,0.0003863,7]
[310214035,1704402643929,-500.0,0.0003863,7]
[310214037,1704402643939,-779.47,0.0003863,7]
[310214039,1704402643949,-577.5,0.0003863,7]
[310214041,1704402643959,-212.7207033,0.0003863,7]
[310214043,1704402643968,-487.41007314,0.0003863,7]
[310214045,1704402643977,-153.38327678,0.0003863,7]
[310214047,1704402643986,-500.0,0.0003863,7]
[310214049,1704402643995,-500.0,0.0003863,7]
[310214051,1704402644005,-500.0,0.0003863,7]
[310214053,1704402644014,-500.0,0.0003863,7]
[310214055,1704402644023,-500.0,0.0003863,7]
[310214057,1704402644032,-324.47795892,0.0003863,7]
[310214059,1704402644042,-500.0,0.0003863,7]
[310214061,1704402644051,-572.68,0.0003863,7]
[310214063,1704402644060,-876.01,0.0003863,7]
[310214065,1704402644069,-500.0,0.0003863,7]
[310214067,1704402644079,-500.0,0.0003863,7]
[310214069,1704402644088,-203.57449121,0.0003863,7]
[310214071,1704402644097,-500.0,0.0003863,7]
[310214073,1704402644107,-513.76685189,0.0003863,7]
[310214075,1704402644116,-500.0,0.0003863,7]
[310214077,1704402644125,-534.62,0.0003863,7]
[310214079,1704402644134,-864.97,0.0003863,7]
[310214081,1704402644143,-1586.66,0.0003863,7]
[310214083,1704402644152,-518.42055121,0.0003863,7]
[310214084,1704402644161,-500.0,0.0003863,7]
[310214086,1704402644170,-500.0,0.0003863,7]
[310214088,1704402644179,-500.0,0.0003863,7]
[310214090,1704402644190,-872.84,0.0003863,7]
[310214093,1704402644199,-500.0,0.0003863,7]
[310214094,1704402644208,-500.0,0.0003863,7]
[310214096,1704402644217,-3351.02,0.0003863,7]
[310214098,1704402644226,-500.0,0.0003863,7]
[310214100,1704402644235,-500.0,0.0003863,7]
[310214111,1704402644325,-299.54091152,0.0003863,7]
[310214113,1704402644334,-500.0,0.0003863,7]
[310214115,1704402644343,-562.12,0.0003863,7]
[310214117,1704402644352,-4359.94,0.0003863,7]
[310214119,1704402644361,-500.0,0.0003863,7]
[310214121,1704402644371,-500.0,0.0003863,7]
[310214123,1704402644380,-500.0,0.0003863,7]
[310214125,1704402644389,-672.06,0.0003863,7]
[310214127,1704402644398,-500.0,0.0003863,7]
[310214129,1704402644407,-878.43,0.0003863,7]
[310214131,1704402644416,-2456.29,0.0003863,7]
[310214133,1704402644426,-500.0,0.0003863,7]
[310214135,1704402644435,-831.29,0.0003863,7]
[310214137,1704402644446,-500.0,0.0003863,7]
[310214139,1704402644456,-500.0,0.0003863,7]
[310214141,1704402644465,-500.0,0.0003863,7]
[310214143,1704402644474,-506.95750076,0.0003863,7]
[310214145,1704402644483,-500.0,0.0003863,7]
[310214147,1704402644495,-500.0,0.0003863,7]
[310214149,1704402644504,-500.0,0.0003863,7]
[310214150,1704402644513,-500.0,0.0003863,7]
[310214151,1704402644522,-505.10789631,0.0003863,7]
[310214152,1704402644531,-500.0,0.0003863,7]
[310214153,1704402644540,-150.0,0.0003863,7]
[310214154,1704402644549,-1273.76,0.0003863,7]
[310214156,1704402644559,-500.0,0.0003863,7]
[310214158,1704402644568,-500.0,0.0003863,7]
[310214160,1704402644577,-688.4,0.0003863,7]
[310214162,1704402644585,-500.0,0.0003863,7]
[310214164,1704402644594,-500.0,0.0003863,7]
[310214166,1704402644603,-500.0,0.0003863,7]
[310214168,1704402644612,-806.11,0.0003863,7]
[310214170,1704402644621,-500.0,0.0003863,7]
[310214172,1704402644630,-807.33,0.0003863,7]
[310214174,1704402644640,-500.0,0.0003863,7]
[310214176,1704402644649,-3571.72,0.0003863,7]
[310214178,1704402644657,-500.0,0.0003863,7]
[310214179,1704402644666,-500.0,0.0003863,7]
[310214182,1704402644676,-10711.78,0.0003863,7]
[310214184,1704402644686,-25933.85,0.0003863,7]
[310214186,1704402644698,-500.0,0.0003863,7]
[310214187,1704402644707,-500.0,0.0003863,7]
[310214189,1704402644716,-500.0,0.0003863,7]
[310214191,1704402644726,-281.08192215,0.0003863,7]
[310214193,1704402644735,-512.81465859,0.0003863,7]
[310214196,1704402644745,-500.0,0.0003863,7]
[310214198,1704402644755,-500.0,0.0003863,7]
[310214200,1704402644765,-500.0,0.0003863,7]
[310214201,1704402644776,-500.0,0.0003863,7]
[310214204,1704402644787,-500.0,0.0003863,7]
[310214206,1704402644797,-179.32268542,0.0003863,7]
[310214207,1704402644807,-500.0,0.0003863,7]
[310214210,1704402644819,-636.03982872,0.0003863,7]
[310214211,1704402644829,-500.0,0.0003863,7]
[310214213,1704402644839,-1808.05,0.0003863,7]
[310214216,1704402644850,-500.0,0.0003863,7]
[310214218,1704402644860,-1587.08,0.0003863,7]
[310214220,1704402644871,-500.0,0.0003863,7]
[310214221,1704402644882,-4004.34,0.0003863,7]
[310214224,1704402644893,-500.0,0.0003863,7]
[310214225,1704402644903,-2074.54,0.0003863,7]
[310214228,1704402644913,-18129.08,0.0003863,7]
[310214229,1704402644923,-500.0,0.0003863,7]
[310214232,1704402644935,-500.0,0.0003863,7]
[310214234,1704402644946,-500.0,0.0003863,7]
[310214236,1704402644956,-723.52,0.0003863,7]
[310214238,1704402644966,-1985.08,0.0003863,7]
[310214240,1704402644976,-1103.74,0.0003863,7]
[310214242,1704402644986,-2205.5,0.0003863,7]
[310214244,1704402644995,-500.0,0.0003863,7]
[310214246,1704402645005,-500.0,0.0003863,7]
[310214248,1704402645014,-500.0,0.0003863,7]
[310214250,1704402645023,-500.0,0.0003863,7]
[310214252,1704402645032,-500.0,0.0003863,7]
[310214254,1704402645042,-500.0,0.0003863,7]
[310214256,1704402645052,-500.0,0.0003863,7]
[310214258,1704402645062,-500.0,0.0003863,7]
[310214260,1704402645071,-673.76,0.0003863,7]
[310214262,1704402645080,-500.0,0.0003863,7]
[310214264,1704402645091,-10104.4,0.0003863,7]
[310214266,1704402645101,-509.82313945,0.0003863,7]
[310214268,1704402645111,-574.0,0.0003863,7]
[310214270,1704402645121,-500.0,0.0003863,7]
[310214272,1704402645131,-500.0,0.0003863,7]
[310214274,1704402645141,-3161.68,0.0003863,7]
[310214276,1704402645150,-500.0,0.0003863,7]
[310214278,1704402645159,-500.0,0.0003863,2]
[310214280,1704402645169,-500.0,0.0003863,7]
[310214282,1704402645179,-6686.95,0.0003863,7]
[310214284,1704402645190,-500.0,0.0003863,7]
[310214286,1704402645200,-500.0,0.0003863,7]
[310214288,1704402645209,-500.0,0.0003863,7]
[310214290,1704402645220,-1236.2,0.0003863,7]
[310214292,1704402645230,-500.0,0.0003863,7]
[310214294,1704402645239,-500.0,0.0003863,7]
[310214296,1704402645249,-500.0,0.0003863,7]
[310214298,1704402645258,-500.0,0.0003863,7]
[310214300,1704402645268,-2438.73,0.0003863,7]
[310214302,1704402645277,-252.676438,0.0003863,2]
[310214304,1704402645286,-252.676438,0.0003863,2]
[310214306,1704402645295,-252.676438,0.0003863,2]
[310214308,1704402645305,-252.676438,0.0003863,2]
[310214310,1704402645314,-252.676438,0.0003863,2]
[310214312,1704402645324,-252.676438,0.0003863,2]
[310214314,1704402645335,-151.0,0.0003863,2]
[310214316,1704402645344,-151.0,0.0003863,2]
[310214318,1704402645354,-151.0,0.0003863,2]
[310214320,1704402645363,-331.499816,0.0003863,2]
[310214322,1704402645373,-331.499816,0.0003863,2]
[310214324,1704402645383,-331.499816,0.0003863,2]
[310214327,1704402645396,-331.499816,0.0003863,2]
[310214328,1704402645408,-331.499816,0.0003863,2]
[310214331,1704402645419,-331.499816,0.0003863,2]
[310214332,1704402645429,-664.0,0.0003874,2]
[310214335,1704402645441,-1052.0,0.0003874,2]
[310214337,1704402645452,-644.06871811,0.00038904,7]
[310214339,1704402645462,-500.0,0.00038904,7]
[310214341,1704402645476,-500.0,0.00038904,7]
[310214342,1704402645486,-500.0,0.00038904,7]
[310214344,1704402645496,-500.0,0.00038904,7]
[310214347,1704402645506,-589.93319902,0.00038904,7]
[310214349,1704402645518,-500.0,0.00038904,7]
[310214350,1704402645528,-500.0,0.00038904,7]
[310214352,1704402645538,-500.0,0.00038904,7]
[310214355,1704402645547,-500.0,0.00038904,7]
[310214357,1704402645557,-1019.78,0.00038904,7]
[310214359,1704402645566,-500.0,0.00038904,7]
[310214360,1704402645576,-500.0,0.00038904,7]
[310214363,1704402645585,-833.25,0.00038904,7]
[310214364,1704402645595,-500.0,0.00038904,7]
[310214367,1704402645605,-500.0,0.00038904,7]
[310214369,1704402645615,-5000.0,0.00038904,10]
[310214370,1704402645624,-500.0,0.00038904,7]
[310214372,1704402645634,-1197.4,0.00038904,7]
[310214375,1704402645644,-500.0,0.00038904,7]
[310214377,1704402645654,-531.15,0.00038904,2]
[310214380,1704402645663,-500.0,0.00038904,7]
[310214383,1704402645672,-460.58336195,0.00038904,7]
[310214385,1704402645681,-500.0,0.00038904,7]
[310214387,1704402645691,-500.0,0.00038904,7]
[310214389,1704402645700,-500.0,0.00038904,7]
[310214391,1704402645709,-500.0,0.00038904,7]
[310214393,1704402645718,-500.0,0.00038904,7]
[310214396,1704402645727,-545.36,0.00038904,7]
[310214399,1704402645736,-500.0,0.00038904,7]
[310214400,1704402645745,-500.0,0.00038904,7]
[310214403,1704402645753,-495.31584704,0.00038904,7]
[310214404,1704402645762,-827.45,0.00038904,7]
[310214406,1704402645772,-500.0,0.00038904,7]
[310214408,1704402645781,-500.0,0.00038904,7]
[310214410,1704402645790,-500.0,0.00038904,7]
[310214412,1704402645799,-500.0,0.00038904,7]
[310214414,1704402645808,-500.0,0.00038904,7]
[310214416,1704402645817,-500.0,0.00038904,7]
[310214418,1704402645826,-1245.07,0.00038904,7]
[310214420,1704402645835,-199.91283579,0.00038904,7]
[310214423,1704402645845,-500.0,0.00038904,7]
[310214424,1704402645854,-189.56691927,0.00038904,7]
[310214426,1704402645863,-629.26352752,0.00038904,7]
[310214428,1704402645872,-500.0,0.00038904,7]
[310214430,1704402645881,-825.19,0.00038904,7]
[310214432,1704402645890,-512.05962348,0.00038904,7]
[310214434,1704402645899,-500.0,0.00038904,7]
[310214436,1704402645907,-500.0,0.00038904,7]
[310214438,1704402645917,-500.0,0.00038904,7]
[310214440,1704402645925,-500.0,0.00038904,7]
[310214442,1704402645934,-500.0,0.00038904,7]
[310214444,1704402645945,-228.34356058,0.00038904,7]
[310214446,1704402645954,-500.0,0.00038904,7]
[310214448,1704402645963,-2473.66,0.00038904,7]
[310214451,1704402645972,-500.0,0.00038904,7]
[310214453,1704402645981,-500.0,0.00038904,7]
[310214455,1704402645990,-500.0,0.00038904,7]
[310214457,1704402645998,-689.61,0.00038904,7]
[310214459,1704402646008,-500.0,0.00038904,7]
[310214461,1704402646016,-500.0,0.00038904,7]
[310214463,1704402646025,-500.0,0.00038904,7]
[310214465,1704402646034,-500.0,0.00038904,7]
[310214467,1704402646043,-500.0,0.00038904,7]
[310214469,1704402646052,-500.0,0.00038904,7]
[310214471,1704402646061,-500.0,0.00038904,7]
[310214473,1704402646070,-500.0,0.00038904,7]
[310214475,1704402646079,-500.0,0.00038904,7]
[310214477,1704402646087,-500.0,0.00038904,7]
[310214478,1704402646097,-1976.56,0.00038904,2]
[310214480,1704402646106,-500.0,0.00038904,7]
[310214482,1704402646116,-500.0,0.00038904,7]
[310214484,1704402646125,-500.0,0.00038904,7]
[310214486,1704402646134,-500.0,0.00038904,7]
[310214488,1704402646144,-500.0,0.00038904,2]
[310214490,1704402646153,-500.0,0.00038904,7]
[310214493,1704402646163,-1936.31,0.00038904,7]
[310214495,1704402646173,-961.52,0.00038904,7]
[310214497,1704402646182,-1091.4,0.00038904,7]
[310214499,1704402646192,-500.0,0.00038904,7]
[310214501,1704402646201,-500.0,0.00038904,7]
[310214503,1704402646211,-500.0,0.00038904,7]
[310214505,1704402646220,-512.2571392,0.00038904,7]
[310214506,1704402646229,-1512.12,0.00038904,7]
[310214517,1704402646315,-500.0,0.00038904,7]
[310214519,1704402646325,-500.0,0.00038904,7]
[310214521,1704402646334,-529.00573451,0.00038904,7]
[310214523,1704402646343,-661.26,0.00038904,7]
[310214525,1704402646352,-157.14295597,0.00038904,7]
[310214527,1704402646362,-705.46,0.00038904,7]
[310214529,1704402646371,-502.72,0.00038904,7]
[310214531,1704402646380,-500.0,0.00038904,7]
[310214533,1704402646389,-500.0,0.00038904,7]
[310214535,1704402646398,-804.09,0.00038904,7]
[310214537,1704402646408,-500.0,0.00038904,7]
[310214539,1704402646417,-500.0,0.00038904,7]
[310214541,1704402646426,-500.0,0.00038904,7]
[310214543,1704402646436,-500.0,0.00038904,7]
[310214545,1704402646446,-500.0,0.00038904,7]
[310214547,1704402646455,-588.30468801,0.00038904,7]
[310214549,1704402646464,-500.0,0.00038904,7]
[310214551,1704402646474,-500.0,0.00038904,7]
[310214553,1704402646483,-1531.92,0.00038904,7]
[310214555,1704402646492,-500.0,0.00038904,7]
[310214557,1704402646502,-194.65028175,0.00038904,7]
[310214559,1704402646511,-500.0,0.00038904,7]
[310214561,1704402646521,-500.0,0.00038904,7]
[310214564,1704402646531,-500.0,0.00038904,7]
[310214566,1704402646541,-500.0,0.00038904,7]
[310214568,1704402646551,-687.47,0.00038904,7]
[310214570,1704402646561,-500.0,0.00038904,7]
[310214572,1704402646570,-500.0,0.00038904,7]
[310214574,1704402646579,-528.7,0.00038904,7]
[310214576,1704402646589,-500.0,0.00038904,7]
[310214577,1704402646599,-500.0,0.00038904,7]
[310214580,1704402646609,-1000.0,0.00038904,2]
[310214582,1704402646618,-500.0,0.00038904,7]
[310214584,1704402646627,-500.0,0.00038904,7]
[310214585,1704402646637,-779.47,0.00038904,7]
[310214588,1704402646646,-577.5,0.00038904,7]
[310214590,1704402646656,-500.0,0.00038904,7]
[310214592,1704402646666,-500.0,0.00038904,7]
[310214594,1704402646675,-500.0,0.00038904,7]
[310214595,1704402646684,-500.0,0.00038904,7]
[310214598,1704402646693,-500.0,0.00038904,7]
[310214600,1704402646702,-500.0,0.00038904,7]
[310214601,1704402646711,-572.68,0.00038904,7]
[310214603,1704402646720,-876.01,0.00038904,7]
[310214605,1704402646729,-500.0,0.00038904,7]
[310214607,1704402646739,-500.0,0.00038904,7]
[310214609,1704402646749,-500.0,0.00038904,7]
[310214611,1704402646758,-500.0,0.00038904,7]
[310214614,1704402646768,-534.62,0.00038904,7]
[310214616,1704402646779,-864.97,0.00038904,7]
[310214617,1704402646788,-1586.66,0.00038904,7]
[310214619,1704402646797,-500.0,0.00038904,7]
[310214621,1704402646807,-413.04344078,0.00038904,7]
[310214624,1704402646816,-500.0,0.00038904,7]
[310214625,1704402646826,-872.84,0.00038904,7]
[310214627,1704402646835,-500.0,0.00038904,7]
[310214629,1704402646845,-500.0,0.00038904,7]
[310214631,1704402646854,-3351.02,0.00038904,7]
[310214633,1704402646863,-500.0,0.00038904,7]
[310214635,1704402646872,-500.0,0.00038904,7]
[310214637,1704402646881,-500.0,0.00038904,7]
[310214639,1704402646890,-562.12,0.00038904,7]
[310214641,1704402646899,-4359.94,0.00038904,7]
[310214643,1704402646908,-500.0,0.00038904,7]
[310214645,1704402646918,-500.0,0.00038904,7]
[310214647,1704402646929,-500.0,0.00038904,7]
[310214649,1704402646939,-672.06,0.00038904,7]
[310214650,1704402646950,-500.0,0.00038904,7]
[310214652,1704402646960,-878.43,0.00038904,7]
[310214654,1704402646970,-2456.29,0.00038904,7]
[310214656,1704402646981,-500.0,0.00038904,7]
[310214658,1704402646992,-831.29,0.00038904,7]
[310214660,1704402647001,-500.0,0.00038904,7]
[310214661,1704402647011,-543.85203547,0.00038904,7]
[310214663,1704402647021,-500.0,0.00038904,7]
[310214665,1704402647031,-500.0,0.00038904,7]
[310214667,1704402647041,-500.0,0.00038904,7]
[310214669,1704402647051,-500.0,0.00038904,7]
[310214671,1704402647061,-500.0,0.00038904,7]
[310214673,1704402647071,-500.0,0.00038904,7]
[310214675,1704402647081,-150.0,0.00038904,7]
[310214677,1704402647090,-1273.76,0.00038904,7]
[310214679,1704402647099,-500.0,0.00038904,7]
[310214681,1704402647108,-500.0,0.00038904,7]
[310214683,1704402647118,-688.4,0.00038904,7]
[310214685,1704402647127,-500.0,0.00038904,7]
[310214687,1704402647137,-500.0,0.00038904,7]
[310214689,1704402647147,-500.0,0.00038904,7]
[310214691,1704402647157,-806.11,0.00038904,7]
[310214693,1704402647166,-500.0,0.00038904,7]
[310214695,1704402647175,-807.33,0.00038904,7]
[310214697,1704402647184,-500.0,0.00038904,7]
[310214699,1704402647195,-3571.72,0.00038904,7]
[310214700,1704402647205,-556.77115775,0.00038904,7]
[310214702,1704402647215,-500.0,0.00038904,7]
[310214704,1704402647225,-10711.78,0.00038904,7]
[310214706,1704402647235,-25933.85,0.00038904,7]
[310214708,1704402647245,-500.0,0.00038904,7]
[310214710,1704402647255,-500.0,0.00038904,7]
[310214712,1704402647264,-500.0,0.00038904,7]
[310214714,1704402647274,-505.21697325,0.00038904,7]
[310214716,1704402647284,-500.0,0.00038904,7]
[310214718,1704402647294,-500.0,0.00038904,7]
[310214720,1704402647303,-500.0,0.00038904,7]
[310214721,1704402647313,-500.0,0.00038904,7]
[310214723,1704402647324,-500.0,0.00038904,7]
[310214725,1704402647336,-500.0,0.00038904,7]
[310214727,1704402647345,-1808.05,0.00038904,7]
[310214729,1704402647355,-500.0,0.00038904,7]
[310214731,1704402647364,-1587.08,0.00038904,7]
[310214733,1704402647373,-500.0,0.00038904,7]
[310214735,1704402647383,-4004.34,0.00038904,7]
[310214737,1704402647395,-500.0,0.00038904,7]
[310214739,1704402647408,-2074.54,0.00038904,7]
[310214741,1704402647420,-18129.08,0.00038904,7]
[310214743,1704402647431,-500.0,0.00038904,7]
[310214745,1704402647445,-500.0,0.00038904,7]
[310214747,1704402647457,-500.0,0.00038904,7]
[310214749,1704402647467,-723.52,0.00038904,7]
[310214751,1704402647478,-1985.08,0.00038904,7]
[310214752,1704402647490,-1103.74,0.00038904,7]
[310214754,1704402647501,-2205.5,0.00038904,7]
[310214756,1704402647511,-500.0,0.00038904,7]
[310214758,1704402647521,-500.0,0.00038904,7]
[310214760,1704402647531,-500.0,0.00038904,7]
[310214762,1704402647542,-500.0,0.00038904,7]
[310214765,1704402647556,-500.0,0.00038904,7]
[310214766,1704402647566,-500.0,0.00038904,7]
[310214768,1704402647575,-503.19522326,0.00038904,7]
[310214770,1704402647585,-275.54565894,0.00038904,7]
[310214772,1704402647595,-673.76,0.00038904,7]
[310214774,1704402647605,-500.0,0.00038904,7]
[310214776,1704402647615,-10104.4,0.00038904,7]
[310214778,1704402647624,-574.0,0.00038904,7]
[310214780,1704402647634,-500.0,0.00038904,7]
[310214782,1704402647644,-521.44648394,0.00038904,7]
[310214784,1704402647657,-3161.68,0.00038904,7]
[310214786,1704402647666,-500.0,0.00038904,7]
[310214788,1704402647675,-500.0,0.00038904,2]
[310214790,1704402647685,-500.0,0.00038904,7]
[310214792,1704402647698,-6686.95,0.00038904,7]
[310214793,1704402647709,-500.0,0.00038904,7]
[310214795,1704402647719,-500.0,0.00038904,7]
[310214797,1704402647729,-500.0,0.00038904,7]
[310214799,1704402647739,-1236.2,0.00038904,7]
[310214801,1704402647751,-500.0,0.00038904,7]
[310214803,1704402647760,-405.35562547,0.00038904,7]
[310214805,1704402647769,-500.0,0.00038904,7]
[310214806,1704402647778,-500.0,0.00038904,7]
[310214807,1704402647786,-252.676438,0.00038904,2]
[310214808,1704402647795,-252.676434,0.00038904,2]
[310214809,1704402647804,-151.0,0.00038904,2]
[310214810,1704402647813,-331.499816,0.00038904,2]
[310214811,1704402647822,-331.499822,0.00038904,2]
[310214812,1704402647832,-151.0,0.00038929,2]